lending/lending_fUSD_20240610
["ID","MTS","AMOUNT","RATE_DAILY","PERIOD"]
[329004708,1718055036165,-500.0,0.00029299,4]
[329004709,1718055036175,-500.0,0.00029299,4]
[329004710,1718055036185,-500.0,0.00029299,4]
[329004711,1718055036194,-459.89804335,0.00029299,4]
[329004712,1718055036206,-500.0,0.00029299,4]
[329004713,1718055036216,-500.0,0.00029299,4]
[329004714,1718055036226,-500.0,0.00029299,4]
[329004715,1718055036235,-500.0,0.00029299,4]
[329004716,1718055036245,-500.0,0.00029299,4]
[329004717,1718055036255,-500.0,0.00029299,4]
[329004718,1718055036265,-500.0,0.00029299,4]
[329004719,1718055036275,-500.0,0.00029299,4]
[329004720,1718055036284,-500.0,0.00029299,4]
[329004721,1718055036294,-500.0,0.00029299,4]
[329004722,1718055036304,-500.0,0.00029299,4]
[329004723,1718055036314,-500.0,0.00029299,4]
[329004724,1718055036323,-500.0,0.00029299,4]
[329004725,1718055036333,-327.34781584,0.00029299,4]
[329004726,1718055036342,-500.0,0.00029299,4]
[329004727,1718055036352,-500.0,0.00029299,4]
[329004728,1718055036362,-500.0,0.00029299,4]
[329004729,1718055036371,-500.0,0.00029299,4]
[329004730,1718055036381,-306.28334607,0.00029299,4]
[329004731,1718055036391,-803.5,0.00029299,4]
[329004732,1718055036400,-803.5,0.00029299,4]
[329004733,1718055036410,-803.5,0.00029299,4]
[329004734,1718055036420,-530.49434821,0.00029299,4]
[329004735,1718055036430,-157.79914287,0.00029299,4]
[329004736,1718055036440,-500.0,0.00029299,4]
[329004737,1718055036450,-500.0,0.00029299,4]
[329004738,1718055036460,-557.69990441,0.00029299,4]
[329004739,1718055036470,-500.0,0.00029299,4]
[329004740,1718055036483,-500.0,0.00029299,4]
[329004741,1718055036493,-508.69236115,0.00029299,4]
[329004742,1718055036503,-509.52642412,0.00029299,4]
[329004743,1718055036514,-574.77007566,0.00029299,4]
[329004744,1718055036526,-500.0,0.00029299,4]
[329004745,1718055036536,-500.0,0.00029299,4]
[329004746,1718055036545,-430.79,0.00029299,4]
[329004747,1718055036555,-1742.06,0.00029299,4]
[329004748,1718055036566,-1742.06,0.00029299,4]
[329004749,1718055036577,-1742.06,0.00029299,4]
[329004750,1718055036586,-500.0,0.00029299,4]
[329004751,1718055036596,-423.54,0.00029299,4]
[329004752,1718055036606,-500.0,0.00029299,4]
[329004753,1718055036616,-500.0,0.00029299,4]
[329004754,1718055036627,-500.0,0.00029299,4]
[329004755,1718055036637,-500.0,0.00029299,4]
[329004756,1718055036647,-500.0,0.00029299,4]
[329004757,1718055036657,-500.0,0.00029299,4]
[329004758,1718055036667,-1273.1,0.00029299,4]
[329004759,1718055036677,-1273.1,0.00029299,4]
[329004760,1718055036687,-500.0,0.00029299,4]
[329004761,1718055036697,-1273.1,0.00029299,4]
[329004762,1718055036708,-500.0,0.00029299,4]
[329004763,1718055036718,-500.0,0.00029299,4]
[329004764,1718055036728,-500.0,0.00029299,4]
[329004765,1718055036738,-500.0,0.00029299,4]
[329004766,1718055036748,-500.0,0.00029299,4]
[329004767,1718055036757,-2783.27,0.00029299,4]
[329004768,1718055036767,-2783.27,0.00029299,4]
[329004769,1718055036777,-2783.27,0.00029299,4]
[329004770,1718055036787,-2285.47,0.00029299,4]
[329004771,1718055036797,-2285.47,0.00029299,4]
[329004772,1718055036806,-2285.47,0.00029299,4]
[329004773,1718055036816,-500.0,0.00029299,4]
[329004774,1718055036826,-500.0,0.00029299,4]
[329004775,1718055036835,-548.06,0.00029299,4]
[329004776,1718055036845,-2745.31,0.00029299,4]
[329004777,1718055036854,-2745.31,0.00029299,4]
[329004778,1718055036863,-2745.31,0.00029299,4]
[329004779,1718055036874,-500.0,0.00029299,4]
[329004780,1718055036884,-500.0,0.00029299,4]
[329004781,1718055036893,-370.43382158,0.00029299,4]
[329004782,1718055036903,-500.0,0.00029299,4]
[329004783,1718055036913,-500.0,0.00029299,4]
[329004784,1718055036922,-500.0,0.00029299,4]
[329004785,1718055036934,-500.0,0.00029299,4]
[329004786,1718055036943,-500.0,0.00029299,4]
[329004787,1718055036953,-500.0,0.00029299,4]
[329004788,1718055036963,-500.0,0.00029299,4]
[329004789,1718055036973,-500.0,0.00029299,4]
[329004790,1718055036983,-500.0,0.00029299,4]
[329004791,1718055036993,-562.41,0.00029299,4]
[329004792,1718055037003,-562.41,0.00029299,4]
[329004793,1718055037013,-562.41,0.00029299,4]
[329004794,1718055037024,-597.67451604,0.00029299,4]
[329004795,1718055037034,-500.0,0.00029299,4]
[329004796,1718055037044,-500.0,0.00029299,4]
[329004797,1718055037054,-500.0,0.00029299,4]
[329004798,1718055037064,-500.0,0.00029299,4]
[329004799,1718055037074,-500.0,0.00029299,4]
[329004800,1718055037084,-500.0,0.00029299,4]
[329004801,1718055037094,-500.0,0.00029299,4]
[329004802,1718055037103,-500.0,0.00029299,4]
[329004803,1718055037113,-500.0,0.00029299,4]
[329004804,1718055037124,-1676.18,0.00029299,4]
[329004805,1718055037134,-1676.18,0.00029299,4]
[329004806,1718055037144,-1676.18,0.00029299,4]
[329004807,1718055037154,-500.0,0.00029299,4]
[329004808,1718055037164,-500.0,0.00029299,4]
[329004809,1718055037174,-500.0,0.00029299,4]
[329004810,1718055037183,-500.0,0.00029299,4]
[329004811,1718055037193,-500.0,0.00029299,4]
[329004812,1718055037205,-500.0,0.00029299,4]
[329004813,1718055037215,-500.0,0.00029299,4]
[329004814,1718055037225,-412.99,0.00029299,4]
[329004815,1718055037235,-11431.19,0.00029299,2]
[329004816,1718055037245,-500.0,0.00029299,4]
[329004817,1718055037255,-500.0,0.00029299,4]
[329004818,1718055037265,-500.0,0.00029299,4]
[329004819,1718055037275,-500.0,0.00029299,4]
[329004820,1718055037285,-500.0,0.00029299,4]
[329004821,1718055037295,-500.0,0.00029299,4]
[329004822,1718055037304,-500.0,0.00029299,4]
[329004823,1718055037315,-179.42,0.00029299,4]
[329004824,1718055037325,-250112.16604782,0.000293,5]
[329004825,1718055037461,-359.64506901,0.00029288,4]
[329004826,1718055037492,-140.35493099,0.00029288,4]
[329004827,1718055037504,-500.0,0.00029299,4]
[329004828,1718055037515,-9991.44093065,0.000293,5]
[329004829,1718055037529,-5420.58701703,0.000293,5]
[329004830,1718055037541,-3402.78701456,0.000293,5]
[329004831,1718055037554,-621.77146932,0.000293,5]
[329004832,1718055037566,-883.97785601,0.000293,5]
[329004833,1718055037578,-450.25,0.000293,5]
[329004834,1718055037590,-1333.90922414,0.000293,5]
[329004835,1718055037602,-742.08714416,0.000293,5]
[329004836,1718055037619,-866.7628267,0.000293,5]
[329004837,1718055037631,-6659.40709401,0.000293,5]
[329004838,1718055037643,-36779.02295496,0.000293,5]
[329004839,1718055037654,-541.14090805,0.000293,5]
[329004840,1718055037666,-5855.66818691,0.000293,5]
[329004842,1718055037678,-19819.74848072,0.000293,5]
[329004843,1718055037691,-5167.615,0.000293,5]
[329004844,1718055037703,-1246.995,0.000293,5]
[329004845,1718055038172,-500.0,0.00029299,4]
[329004846,1718055038182,-500.0,0.00029299,4]
[329004847,1718055038192,-8762.5423845,0.000293,13]
[329004848,1718055038203,-1394.70981053,0.000293,5]
[329004849,1718055038410,-6032.35964031,0.000293,5]
[329004850,1718055038423,-500.0,0.000293,5]
[329004851,1718055038436,-580.94079703,0.000293,5]
[329004852,1718055038448,-1444.47767173,0.000293,5]
[329004853,1718055038463,-1662.29927355,0.000293,5]
[329004854,1718055038655,-3389.96530916,0.000293,5]
[329004855,1718055038667,-9319.78366356,0.000293,5]
[329004856,1718055038888,-1941.56591577,0.000293,5]
[329004857,1718055038900,-308.66866659,0.000293,5]
[329004858,1718055039138,-3206.36718444,0.000293,5]
[329004859,1718055039151,-4343.464663,0.000293,5]
[329004860,1718055039163,-4292.0362155,0.000293,5]
[329004862,1718055040971,-216.29423831,0.0002929,2]
[329004863,1718055040981,-137291.87219683,0.000293,5]
[329004898,1718055043421,-155.68,0.00028397,2]
[329004900,1718055043432,-191.64,0.00029289,4]
[329004902,1718055043442,-172667.97709652,0.000293,5]
[329004903,1718055043451,-488.0,0.000293,13]
[329004904,1718055043461,-345.0,0.000293,2]
[329004905,1718055043471,-150.0,0.000293,6]
[329004906,1718055043482,-300.0,0.00029303,2]
[329004907,1718055043492,-1500.0,0.00029304,2]
[329004908,1718055043502,-150.0,0.00029308,2]
[329004909,1718055043515,-150.0,0.0002931,2]
[329004910,1718055043527,-150.0,0.00029314,2]
[329004911,1718055043537,-150.0,0.00029322,2]
[329004912,1718055043547,-6982.34363231,0.00029327,2]
[329004913,1718055043557,-150.0,0.0002933,2]
[329004914,1718055043569,-178.32537667,0.00029331,2]
[329004915,1718055043580,-261.39091058,0.00029331,2]
[329004916,1718055043589,-150.0,0.00029331,2]
[329004917,1718055043599,-1500.0,0.00029342,2]
[329004918,1718055043609,-2747.18895734,0.00029344,15]
[329004919,1718055043618,-150.0,0.00029345,2]
[329004920,1718055043628,-323.25269541,0.00029346,2]
[329004921,1718055043637,-1500.0,0.00029352,2]
[329004922,1718055043647,-300.0,0.00029354,2]
[329004923,1718055043658,-261.39091058,0.00029359,2]
[329004924,1718055043667,-215.62749419,0.00029362,15]
[329004925,1718055043677,-350.43098329,0.00029388,2]
[329004926,1718055043687,-1387.464949,0.00029388,2]
[329004927,1718055043697,-6982.34363231,0.00029391,2]
[329004928,1718055043706,-4933.75,0.00029398,2]
[329004929,1718055043716,-155.0,0.00029398,2]
[329004930,1718055043726,-256.61296887,0.00029398,2]
[329004931,1718055043735,-160.0,0.000294,2]
[329004932,1718055043745,-299.500935,0.000294,2]
[329004933,1718055043754,-1004.5,0.000294,2]
[329004934,1718055043896,-314.04,0.000294,2]
[329004935,1718055043906,-2527.24,0.00029406,2]
[329004936,1718055043916,-151.0,0.00029434,7]
[329004937,1718055043926,-6982.34363231,0.00029455,2]
[329004938,1718055043936,-2747.18895734,0.00029456,15]
[329004939,1718055043946,-150.5,0.00029459,15]
[329004940,1718055043956,-150.5,0.00029469,15]
[329004941,1718055043966,-215.62749419,0.00029469,15]
[329004942,1718055043976,-150.5,0.00029479,15]
[329004943,1718055043986,-150.5,0.00029479,15]
[329004944,1718055043996,-261.39091058,0.00029481,2]
[329004945,1718055044006,-270.90465715,0.00029485,2]
[329004946,1718055044016,-500.0,0.00029487,4]
[329004947,1718055044026,-500.0,0.00029487,4]
[329004948,1718055044036,-500.0,0.00029487,4]
[329004949,1718055044046,-500.0,0.00029487,4]
[329004950,1718055044055,-358.16165826,0.00029487,4]
[329004951,1718055044065,-500.0,0.00029487,4]
[329004952,1718055044076,-500.0,0.00029487,4]
[329004953,1718055044086,-803.5,0.00029487,4]
[329004954,1718055044095,-1273.1,0.00029487,4]
[329004955,1718055044105,-500.0,0.00029487,4]
[329004956,1718055044115,-2783.27,0.00029487,4]
[329004957,1718055044125,-2285.47,0.00029487,4]
[329004958,1718055044135,-500.0,0.00029487,4]
[329004959,1718055044145,-500.0,0.00029487,4]
[329004960,1718055044155,-209.71,0.00029487,4]
[329004961,1718055044165,-544.55344026,0.00029487,4]
[329004962,1718055044176,-500.0,0.00029487,4]
[329004963,1718055044186,-188.88255537,0.00029488,2]
[329004964,1718055044196,-5895.19145889,0.00029488,2]
[329004965,1718055044208,-500.0,0.00029488,4]
[329004966,1718055044219,-500.0,0.00029488,4]
[329004967,1718055044229,-500.0,0.00029488,4]
[329004968,1718055044239,-243.22,0.00029488,4]
[329004969,1718055044249,-500.0,0.00029488,4]
[329004970,1718055044259,-500.0,0.00029488,4]
[329004971,1718055044268,-500.0,0.00029488,4]
[329004972,1718055044278,-500.0,0.00029488,4]
[329004973,1718055044288,-500.0,0.00029488,4]
[329004974,1718055044297,-500.0,0.00029488,4]
[329004975,1718055044308,-500.0,0.00029488,4]
[329004976,1718055044318,-500.0,0.00029488,4]
[329004977,1718055044328,-500.0,0.00029488,4]
[329004978,1718055044338,-500.0,0.00029488,4]
[329004979,1718055044349,-173.64506428,0.00029488,4]
[329004980,1718055044359,-500.0,0.00029488,4]
[329004981,1718055044369,-500.0,0.00029488,4]
[329004982,1718055044379,-500.0,0.00029488,4]
[329004983,1718055044389,-500.0,0.00029488,4]
[329004984,1718055044399,-803.5,0.00029488,4]
[329004985,1718055044409,-803.5,0.00029488,4]
[329004986,1718055044418,-1742.06,0.00029488,4]
[329004987,1718055044429,-1742.06,0.00029488,4]
[329004988,1718055044438,-1742.06,0.00029488,4]
[329004989,1718055044449,-500.0,0.00029488,4]
[329004990,1718055044459,-500.0,0.00029488,4]
[329004991,1718055044469,-500.0,0.00029488,4]
[329004992,1718055044480,-1273.1,0.00029488,4]
[329004993,1718055044494,-1273.1,0.00029488,4]
[329004994,1718055044504,-500.0,0.00029488,4]
[329004995,1718055044514,-500.0,0.00029488,4]
[329004996,1718055044525,-500.0,0.00029488,4]
[329004997,1718055044535,-500.0,0.00029488,4]
[329004998,1718055044545,-500.0,0.00029488,4]
[329004999,1718055044557,-2783.27,0.00029488,4]
[329005000,1718055044566,-2783.27,0.00029488,4]
[329005001,1718055044577,-2285.47,0.00029488,4]
[329005002,1718055044587,-2285.47,0.00029488,4]
[329005003,1718055044597,-2745.31,0.00029488,4]
[329005004,1718055044607,-2745.31,0.00029488,4]
[329005005,1718055044617,-2745.31,0.00029488,4]
[329005006,1718055044627,-500.0,0.00029488,4]
[329005007,1718055044637,-500.0,0.00029488,4]
[329005008,1718055044647,-500.0,0.00029488,4]
[329005009,1718055044657,-500.0,0.00029488,4]
[329005010,1718055044667,-500.0,0.00029488,4]
[329005011,1718055044678,-500.0,0.00029488,4]
[329005012,1718055044688,-500.0,0.00029488,4]
[329005013,1718055044698,-500.0,0.00029488,4]
[329005014,1718055044708,-562.41,0.00029488,4]
[329005015,1718055044719,-562.41,0.00029488,4]
[329005016,1718055044730,-562.41,0.00029488,4]
[329005017,1718055044740,-500.0,0.00029488,4]
[329005018,1718055044750,-500.0,0.00029488,4]
[329005019,1718055044760,-500.0,0.00029488,4]
[329005020,1718055044770,-230.92,0.00029488,4]
[329005021,1718055044780,-1676.18,0.00029488,4]
[329005022,1718055044790,-1676.18,0.00029488,4]
[329005023,1718055044800,-1676.18,0.00029488,4]
[329005024,1718055044812,-500.0,0.00029488,4]
[329005025,1718055044821,-500.0,0.00029488,4]
[329005026,1718055044831,-469.68,0.00029488,4]
[329005027,1718055044841,-500.0,0.00029488,4]
[329005028,1718055044851,-500.0,0.00029488,4]
[329005029,1718055044861,-500.0,0.00029488,4]
[329005030,1718055044871,-500.0,0.00029488,4]
[329005031,1718055044881,-500.0,0.00029488,4]
[329005032,1718055044891,-162.0,0.00029489,5]
[329005033,1718055044901,-273178.60955501,0.00029489,2]
[329005034,1718055044919,-635.77888805,0.00029288,4]
[329005035,1718055044929,-4503.95464562,0.00029489,2]
[329005036,1718055044941,-426.69999987,0.00029489,2]
[329005037,1718055044953,-37005.65013087,0.00029489,2]
[329005038,1718055044965,-522.809,0.00029489,2]
[329005039,1718055044976,-7369.81820021,0.00029489,2]
[329005040,1718055044988,-4043.23692891,0.00029489,2]
[329005041,1718055045000,-3319.68879838,0.00029489,2]
[329005042,1718055045012,-6860.5,0.00029489,2]
[329005043,1718055045028,-311.62064007,0.00029489,2]
[329005071,1718055046146,-922.85034322,0.00029489,2]
[329005072,1718055046574,-62636.95320417,0.00029489,2]
[329005073,1718055046804,-3168.98365127,0.00029489,2]
[329005850,1718055116983,575.27790771,0.00017259,7]
[329005851,1718055124555,2683.02464674,0.00017259,2]
[329005852,1718055124584,817.2552578,0.00017259,2]
[329005853,1718055223914,2787567.0476107,0.00014,2]
[329005863,1718055472929,155.0,0.00014,10]
[329005865,1718055492886,170.15497257,0.00014,10]
[329005869,1718056121054,1202.97664685,0.00014,2]
[329005870,1718056172162,-187.1201828,0.0001476,2]
[329005874,1718056234420,-195.79238693,0.00014758,2]
[329005875,1718056234430,-338.68648196,0.00014759,2]
[329005876,1718056234440,-359.40190796,0.0001476,2]
[329005877,1718056234454,-463.7839458,0.0001476,2]
[329005878,1718056234466,-350.63988,0.0001476,2]
[329005879,1718056234478,-45.38472914,0.0001476,2]
[329005880,1718056234488,-264.61527086,0.0001476,2]
[329005881,1718056234500,-337.21932,0.0001476,2]
[329005882,1718056234723,-3707.81467469,0.0001476,2]
[329005903,1718056238663,-941.60252869,0.0001476,2]
[329005904,1718056238675,-2273.41096645,0.0001476,2]
[329005905,1718056238686,-468.82830959,0.0001476,2]
[329005906,1718056238697,-1227.60404342,0.0001476,2]
[329005907,1718056238707,-307.45960582,0.00014765,2]
[329005908,1718056238717,-150.0,0.00014766,2]
[329005909,1718056238727,-300.0,0.000148,5]
[329005910,1718056238736,-150.0,0.00014877,2]
[329005911,1718056238747,-600.0,0.000149,5]
[329005912,1718056238757,-176.08345326,0.0001499,2]
[329005913,1718056238766,-323.25269541,0.0001499,2]
[329005914,1718056238776,-216.29423832,0.0001499,2]
[329005915,1718056238785,-150.13,0.0001499,2]
[329005916,1718056238794,-150.13,0.0001499,2]
[329005917,1718056238804,-150.13,0.0001499,2]
[329005918,1718056238814,-150.13,0.0001499,2]
[329005919,1718056238823,-150.13,0.0001499,2]
[329005920,1718056238832,-150.13,0.0001499,2]
[329005921,1718056238842,-150.13,0.0001499,2]
[329005922,1718056238851,-150.13,0.0001499,2]
[329005923,1718056238861,-2428.82646203,0.00014999,2]
[329005924,1718056239309,-213.15790435,0.00014999,2]
[329005925,1718056239321,-1301.89871385,0.00015,2]
[329005926,1718056239365,-0.00713795,0.00015,2]
[329006140,1718056241915,-465.84452656,0.00015,2]
[329006194,1718056242442,-28058.0394394,0.00015,2]
[329006196,1718056242456,-1734.57372084,0.00015,2]
[329006359,1718056243999,-53990.65463534,0.00015,2]
[329006361,1718056244012,-424.30891137,0.00015,2]
[329006412,1718056244528,-3755.49622887,0.00015,2]
[329006415,1718056244541,-3040.09229717,0.00015,2]
[329006604,1718056246829,-29917.45886401,0.00015,2]
[329006605,1718056246841,-7993.34791713,0.00015,2]
[329006614,1718056246995,-747.54487454,0.00015,2]
[329006632,1718056247163,-11960.77658432,0.00015,2]
[329006634,1718056247175,-22000.0,0.00015,2]
[329006730,1718057432973,-768.94693813,0.00014471,2]
[329006731,1718057432985,-58.12832787,0.00014471,2]
[329006732,1718057432995,-931.79955074,0.00014544,2]
[329006733,1718057433005,-475.47185481,0.00014618,2]
[329006734,1718057433015,-200.0,0.000148,5]
[329006735,1718057433027,-136.03052785,0.0001485,2]
[329006736,1718057433039,-18.96947215,0.0001485,2]
[329006737,1718057433048,-166.00817238,0.000149,2]
[329006738,1718057433058,-500.0,0.000149,5]
[329006739,1718057433068,-172.59695238,0.000149,2]
[329006740,1718057433077,-283.07768995,0.000149,2]
[329006741,1718057433233,-81.1630825,0.000149,2]
[329006742,1718057433243,-219.61,0.00014904,3]
[329006744,1718057433253,-2163.99486527,0.00014989,2]
[329006746,1718057433265,-262.90926715,0.00014989,2]
[329006754,1718057438393,-203.17849287,0.000149,2]
[329006755,1718057438403,-23812.03805443,0.00014989,2]
[329006756,1718057438413,-4397.98081115,0.0001499,2]
[329006757,1718057438424,-199.33660193,0.0001499,2]
[329006758,1718057438434,-150.14,0.0001499,2]
[329006759,1718057438445,-150.14,0.0001499,2]
[329006760,1718057438455,-150.14,0.0001499,2]
[329006761,1718057438464,-150.14,0.0001499,2]
[329006762,1718057438474,-150.14,0.0001499,2]
[329006763,1718057438484,-150.14,0.0001499,2]
[329006764,1718057438494,-150.14,0.0001499,2]
[329006765,1718057438504,-150.14,0.0001499,2]
[329006766,1718057438513,-150.14,0.0001499,2]
[329006767,1718057438527,-150.14,0.0001499,2]
[329006768,1718057438537,-150.14,0.0001499,2]
[329006769,1718057438548,-150.14,0.0001499,2]
[329006770,1718057438557,-150.14,0.0001499,2]
[329006771,1718057438567,-2185.18574346,0.00015,2]
[329006772,1718057438677,-1063.62414582,0.00015,2]
[329006773,1718057439231,-20870.96713048,0.00015,2]
[329007008,1718057442324,-1978.0128887,0.00015,2]
[329007010,1718057442336,-457.69048411,0.00015,2]
[329007029,1718057442524,-4000.0,0.00015,2]
[329007197,1718057443991,-172593.74272046,0.00015,2]
[329007264,1718057444658,-6000.45430005,0.00015,2]
[329007358,1718057446689,-15046.49292121,0.00015,2]
[329007359,1718057446702,-2957.21493839,0.00015,2]
[329007360,1718058561329,-1413.14647717,0.00014899,2]
[329007364,1718058633626,-575.27790771,0.00014897,7]
[329007365,1718058633636,-378.77801833,0.00014898,2]
[329007366,1718058633646,-8.45056773,0.00014899,2]
[329007367,1718058633659,-7799.4980688,0.00014899,2]
[329007368,1718058633669,-150.0,0.00014899,2]
[329007369,1718058633679,-152.43950844,0.000149,2]
[329007370,1718058633691,-4173.94106998,0.000149,2]
[329007371,1718058633701,-166.00817238,0.000149,2]
[329007372,1718058633711,-221.5099,0.000149,2]
[329007373,1718058633721,-172.59695238,0.000149,2]
[329007374,1718058633732,-225.37665318,0.000149,2]
[329007375,1718058633742,-364.24077244,0.000149,2]
[329007376,1718058633753,-309.33,0.00014904,2]
[329007377,1718058633763,-4106.4282555,0.00014989,2]
[329007378,1718058633773,-196.64476926,0.0001499,2]
[329007379,1718058633783,-150.16,0.0001499,2]
[329007380,1718058633793,-150.16,0.0001499,2]
[329007381,1718058633804,-150.16,0.0001499,2]
[329007382,1718058633814,-150.16,0.0001499,2]
[329007383,1718058633824,-150.16,0.0001499,2]
[329007384,1718058633835,-150.16,0.0001499,2]
[329007385,1718058633845,-150.16,0.0001499,2]
[329007391,1718058634020,-150.16,0.0001499,2]
[329007394,1718058634036,-150.16,0.0001499,2]
[329007396,1718058634046,-2628.89466569,0.00014999,2]
[329007398,1718058634058,-688.78661675,0.00014999,2]
[329007400,1718058634068,-198385.6840473,0.00015,2]
[329007402,1718058634080,-1524.10623217,0.00015,2]
[329007432,1718058638656,-5020.12287003,0.00014899,2]
[329007433,1718058639204,-19643.26624049,0.00014899,2]
[329007434,1718058639214,-60884.21822352,0.00014899,2]
[329007452,1718058642339,-1027.48233381,0.00014899,2]
[329007453,1718058642351,-450.41729115,0.00014899,2]
[329007454,1718058642648,-3204.04329008,0.00014899,2]
[329007455,1718058642663,-3692.65580947,0.00014899,2]
[329007504,1718058644380,-563.8784653,0.00014899,2]
[329007505,1718058644393,-40511.82106738,0.00014899,2]
[329007506,1718058644405,-437569.23177685,0.00014899,2]
[329007507,1718058644417,-196.64476926,0.0001499,2]
[329007508,1718058644427,-280.02052301,0.00015,2]
[329007509,1718058644671,-547790.41627275,0.00015,2]
[329007510,1718058644683,-79009.86944785,0.00015,2]
[329007511,1718058644695,-41662.82809785,0.00015,2]
[329007512,1718058644708,-12431.21513624,0.00015,2]
[329007513,1718058644720,-12243.52772855,0.00015,2]
[329007514,1718058644730,-155.0,0.00015,2]
[329007515,1718058644740,-20268.82653709,0.00015,2]
[329007516,1718058644750,-299.75188144,0.00015,2]
[329007517,1718058644760,-180.69395492,0.00015,2]
[329007518,1718058644770,-417.02833,0.00015,2]
[329007519,1718058644780,-2177.0,0.00016071,2]
[329007520,1718058644790,-4173.94106987,0.00016264,2]
[329007521,1718058644799,-225.37665314,0.00017043,2]
[329007522,1718058644809,-150.99,0.00017043,2]
[329007523,1718058644820,-499.99,0.0001726,2]
[329007524,1718058644831,-6004.06,0.0001726,2]
[329007525,1718058644841,-470.2,0.00017534,2]
[329007526,1718058644851,-299.99,0.00017534,4]
[329007527,1718058644861,-4173.94106987,0.00017627,2]
[329007528,1718058644871,-630.63,0.00017627,6]
[329007529,1718058644882,-221.04,0.00017627,2]
[329007530,1718058644893,-4173.94106987,0.00018991,2]
[329007531,1718058644904,-5983.68439852,0.00019,2]
[329007532,1718058644916,-225.37665314,0.00019186,2]
[329007533,1718058644926,-150.0,0.0001983,2]
[329007534,1718058644936,-583.86597409,0.000199,3]
[329007535,1718058644947,-417.02834,0.0002,2]
[329007536,1718058644957,-4173.94106987,0.00020355,2]
[329007537,1718058644968,-3781.0,0.000206,3]
[329007539,1718058644980,-11739.0,0.000212,5]
[329007541,1718058644994,-225.37665314,0.00021329,2]
[329007543,1718058645004,-4173.94106987,0.00021718,2]
[329007545,1718058645015,-150.0,0.00021918,2]
[329007547,1718058645026,-150.0,0.00021918,2]
[329007549,1718058645037,-290.63,0.00022202,2]
[329007551,1718058645047,-152.43950843,0.000224,2]
[329007553,1718058645057,-150.16,0.0002249,2]
[329007555,1718058645070,-651.0,0.000225,2]
[329007557,1718058645081,-2476.0,0.000225,2]
[329007558,1718058645091,-3000.0,0.00023,7]
[329007561,1718058645101,-4173.94106987,0.00023082,2]
[329007562,1718058645111,-250.0,0.00023297,2]
[329007564,1718058645121,-225.37665314,0.00023471,2]
[329007566,1718058645131,-299.8,0.00023901,2]
[329007568,1718058645141,-155.68,0.00024165,2]
[329007571,1718058645151,-316.62,0.00024185,2]
[329007572,1718058645162,-182.21,0.00024346,2]
[329007574,1718058645171,-158.41,0.00024384,2]
[329007577,1718058645182,-237.37,0.00024384,2]
[329007579,1718058645192,-159.1,0.00024384,2]
[329007581,1718058645203,-156.08,0.00024384,2]
[329007582,1718058645213,-2879.48310777,0.00024445,2]
[329007631,1718058647042,-1294.4579621,0.00024445,2]
[329007632,1718058647052,-290.63,0.00024466,2]
[329007633,1718058647063,-1000.0,0.00024787,2]
[329007634,1718058647074,-1098.87558299,0.00024798,2]
[329007635,1718058647085,-1098.87558293,0.00024798,2]
[329007636,1718058647095,-1098.87558293,0.00024798,2]
[329007637,1718058647105,-1098.87558293,0.00024798,2]
[329007638,1718058647115,-1098.87558293,0.00024798,2]
[329007639,1718058647125,-1098.87558293,0.00024798,2]
[329007640,1718058647135,-161.72062069,0.00024799,2]
[329007641,1718058647145,-161.72062065,0.00024799,2]